bitfinex-derivatives/quotes_BTCF0:USTF0_20241009
["timestamp","ask_amount","ask_price","bid_price","bid_amount"]
[1728481390721,0.201738,61975.0,61974.0,0.450539]
[1728481391219,0.200738,61975.0,61974.0,0.441539]
[1728481391540,0.202738,61975.0,61974.0,0.457539]
[1728481391717,0.202738,61975.0,61974.0,0.3768]
[1728481391718,0.482738,61975.0,61974.0,0.3768]
[1728481392112,0.482738,61975.0,61974.0,0.016]
[1728481392814,0.482738,61975.0,61974.0,0.3768]
[1728481394223,0.482738,61975.0,61974.0,0.016]
[1728481394825,1.566818,61975.0,61974.0,0.016]
[1728481395045,1.927618,61975.0,61974.0,0.016]
[1728481395425,0.080752,61964.0,61963.0,0.8608]
[1728481395632,0.480752,61964.0,61963.0,0.8608]
[1728481396027,1.564912,61964.0,61963.0,0.8608]
[1728481396427,2.784912,61964.0,61963.0,0.5]
[1728481396726,2.784912,61964.0,61949.0,0.3608]
[1728481396727,0.08077,61950.0,61949.0,0.3608]
[1728481396922,0.47077,61950.0,61949.0,0.3608]
[1728481398426,0.11,61950.0,61949.0,0.444572]
[1728481398634,0.47077,61950.0,61949.0,0.3638]
[1728481399922,0.47077,61950.0,61949.0,0.007]
[1728481399923,0.47177,61950.0,61949.0,0.007]
[1728481400131,1.55605,61950.0,61949.0,0.007]
[1728481401127,3.05605,61950.0,61949.0,0.007]
[1728481403525,0.360789,61936.0,61935.0,0.3608]
[1728481403727,0.470789,61936.0,61935.0,0.3608]
[1728481404620,0.471789,61936.0,61935.0,0.3708]
[1728481404825,0.472789,61936.0,61935.0,0.3708]
[1728481405023,0.472789,61936.0,61935.0,0.01]
[1728481405736,0.112,61936.0,61935.0,0.01]
[1728481405928,0.112,61936.0,61935.0,0.09079]
[1728481406533,0.111,61936.0,61935.0,0.08079]
[1728481406740,0.112,61936.0,61935.0,0.08779]
[1728481409038,0.080776,61946.0,61942.0,0.080781]
[1728481409267,0.200776,61946.0,61945.0,0.3608]
[1728481409433,0.12,61946.0,61945.0,0.441577]
[1728481410138,0.125,61946.0,61945.0,0.441577]
[1728481410435,0.125,61946.0,61945.0,0.802377]
[1728481410636,0.123,61946.0,61945.0,0.802377]
[1728481410833,0.125,61946.0,61945.0,0.802377]
[1728481411029,0.122,61946.0,61945.0,0.802377]
[1728481411430,0.12,61946.0,61945.0,0.802377]
[1728481411638,0.401,61946.0,61945.0,0.3608]
[1728481411834,0.481776,61946.0,61945.0,0.3608]
[1728481412838,0.201776,61946.0,61945.0,0.3608]
[1728481413137,0.200776,61946.0,61945.0,0.3608]
[1728481413640,0.200776,61946.0,61945.0,0.3628]
[1728481414030,0.202776,61946.0,61945.0,0.3628]
[1728481414562,0.42920568,61946.0,61945.0,0.63369118]
[1728481414753,0.42920568,61946.0,61945.0,0.81023097]
[1728481415143,0.42920568,61946.0,61945.0,0.44943097]
[1728481415630,0.42920568,61946.0,61945.0,0.27289118]
[1728481416229,1.92920568,61946.0,61945.0,0.27289118]
[1728481416526,0.080778,61944.0,61943.0,0.11311445]
[1728481416730,0.1,61944.0,61943.0,0.19389345]
[1728481417742,0.180778,61944.0,61943.0,0.19389345]
[1728481418435,0.181778,61944.0,61943.0,0.19389345]
[1728481419242,0.101,61944.0,61943.0,0.19389345]
[1728481420138,0.06059883,61944.0,61943.0,0.31695542]
[1728481421341,0.06059883,61944.0,61943.0,0.19389345]
[1728481421743,0.06059883,61944.0,61943.0,0.11311445]
[1728481421941,0.06059883,61944.0,61943.0,0.19389345]
[1728481423040,0.06059883,61944.0,61943.0,0.47389345]
[1728481423540,0.06059883,61944.0,61943.0,0.19389345]
[1728481423738,0.06059883,61944.0,61926.0,0.17775128]
[1728481423739,0.3608,61939.0,61908.0,0.00116]
[1728481423953,0.28,61913.0,61899.0,0.3608]
[1728481424143,0.360829,61905.0,61899.0,0.3608]
[1728481425035,0.740829,61905.0,61904.0,0.008]
[1728481425370,0.541629,61905.0,61904.0,0.11935654]
[1728481425557,0.08083,61904.0,61903.0,0.09473429]
[1728481425877,0.74083,61904.0,61903.0,0.09473429]
[1728481426055,0.74083,61904.0,61903.0,0.00280429]
[1728481426256,0.74083,61904.0,61894.0,0.045]
[1728481426462,0.510842,61895.0,61894.0,0.045]
[1728481427146,2.010842,61895.0,61894.0,0.045]
[1728481427635,1.580842,61895.0,61894.0,0.045]
[1728481428034,1.581842,61895.0,61894.0,0.045]
[1728481428232,1.582842,61895.0,61894.0,0.051]
[1728481428432,2.012842,61895.0,61894.0,0.051]
[1728481428942,2.012842,61895.0,61894.0,0.006]
[1728481429140,2.132842,61895.0,61894.0,0.006]
[1728481433946,0.632842,61895.0,61894.0,0.006]
[1728481437044,0.64715914,61895.0,61894.0,0.006]
[1728481437949,0.202842,61895.0,61894.0,0.006]
[1728481441068,0.202842,61895.0,61894.0,1e-06]
[1728481441069,1.717522,61895.0,61894.0,1e-06]
[1728481441263,1.717522,61895.0,61886.0,0.04682373]
[1728481441264,0.080853,61887.0,61886.0,0.0444]
[1728481441468,0.190853,61887.0,61886.0,0.0444]
[1728481441842,0.11,61887.0,61886.0,0.0444]
[1728481442044,0.190853,61887.0,61886.0,0.0444]
[1728481443255,0.190853,61887.0,61886.0,0.125254]
[1728481443256,0.0525,61887.0,61886.0,0.125254]
[1728481443535,0.001,61895.0,61890.0,0.080848]
[1728481443758,0.001,61895.0,61886.0,1.55916]
[1728481443759,0.080849,61890.0,61886.0,0.126494]
[1728481444074,0.080851,61888.0,61886.0,0.125254]
[1728481444955,0.080843,61895.0,61887.0,0.3608]
[1728481444956,0.080848,61891.0,61887.0,0.3608]
[1728481445161,0.002,61895.0,61893.0,0.080843]
[1728481445353,0.002,61895.0,61894.0,0.080843]
[1728481445354,0.102,61895.0,61894.0,0.080843]
[1728481446069,0.002,61895.0,61894.0,1.165523]
[1728481446255,1.50242421,61901.0,61894.0,1.165523]
[1728481446455,1.50242421,61901.0,61900.0,0.080836]
[1728481446766,0.00242421,61901.0,61900.0,0.441636]
[1728481446970,0.080819,61913.0,61910.0,0.080822]
[1728481447167,1.5,61912.0,61910.0,0.080822]
[1728481447486,1.68082,61912.0,61909.0,0.441623]
[1728481447760,1.68082,61912.0,61910.0,0.080822]
[1728481447970,1.58082,61912.0,61910.0,0.080822]
[1728481448167,1.5,61912.0,61911.0,0.080821]
[1728481448562,0.007,61912.0,61911.0,1.165381]
[1728481448782,0.004,61913.0,61912.0,0.08082]
[1728481448980,0.004,61913.0,61912.0,0.36082]
[1728481449177,0.004,61913.0,61912.0,1.44538]
[1728481449677,1.5,61921.0,61920.0,0.080809]
[1728481450180,1.5,61921.0,61918.0,0.441612]
[1728481450374,1.5,61921.0,61920.0,0.080809]
[1728481450571,1.5,61921.0,61918.0,0.3608]
[1728481450983,1.513,61921.0,61920.0,0.081809]
[1728481452179,1.527,61921.0,61920.0,0.081809]
[1728481452682,1.527,61921.0,61920.0,0.080809]
[1728481452918,0.027,61921.0,61920.0,0.081809]
[1728481453278,0.014,61921.0,61920.0,0.086809]
[1728481453578,0.09485626,61921.0,61920.0,0.00594908]
[1728481453775,0.09485626,61921.0,61920.0,0.08675808]
[1728481453976,0.09585626,61921.0,61920.0,0.08775808]
[1728481454384,0.09591039,61921.0,61920.0,0.08775808]
[1728481454575,0.03841532,61921.0,61920.0,0.086809]
[1728481455472,0.08112952,61921.0,61920.0,0.086809]
[1728481455674,0.16093752,61921.0,61920.0,0.004]
[1728481456277,0.081808,61921.0,61920.0,0.005]
[1728481456985,0.081808,61921.0,61918.0,0.40434]
[1728481456986,0.080811,61919.0,61918.0,0.36204]
[1728481457200,0.16034652,61919.0,61918.0,0.3608]
[1728481457593,0.07953552,61919.0,61918.0,0.441612]
[1728481458976,0.08153552,61919.0,61918.0,0.441612]
[1728481459183,0.08253552,61919.0,61918.0,0.447612]
[1728481459484,0.08253552,61919.0,61918.0,1.532132]
[1728481459688,0.07953552,61919.0,61918.0,1.526132]
[1728481459883,0.07953552,61919.0,61918.0,1.530132]
[1728481460688,0.07951745,61919.0,61918.0,1.530132]
[1728481461007,1.50096001,61923.0,61918.0,1.528132]
[1728481461292,1.5,61923.0,61922.0,0.360807]
[1728481461785,0.00084,61938.0,61922.0,1.72528]
[1728481461982,0.05084,61938.0,61936.0,0.080788]
[1728481462192,0.080791,61934.0,61933.0,0.441592]
[1728481462391,0.190791,61934.0,61933.0,0.3608]
[1728481462790,0.190791,61934.0,61933.0,0.441592]
[1728481463384,0.201791,61934.0,61933.0,0.3618]
[1728481463791,0.201791,61934.0,61933.0,0.3608]
[1728481464003,0.080801,61927.0,61924.0,0.00242222]
[1728481464187,0.11,61927.0,61926.0,0.080802]
[1728481465293,0.1908,61927.0,61926.0,0.080802]
[1728481466001,0.080803,61925.0,61924.0,0.00242222]
[1728481466295,0.1,61925.0,61924.0,0.08322622]
[1728481467495,0.101,61925.0,61924.0,0.08922622]
[1728481467712,0.13751923,61925.0,61924.0,0.08922622]
[1728481467890,0.21832223,61925.0,61924.0,0.08922622]
[1728481468987,0.21732223,61925.0,61924.0,0.08322622]
[1728481469187,0.21732223,61925.0,61924.0,0.08522622]
[1728481469800,0.25984343,61925.0,61924.0,0.08522622]
[1728481469985,0.21732223,61925.0,61924.0,0.08522622]
[1728481470410,0.21732223,61925.0,61924.0,0.002]
[1728481470616,1.62413083,61925.0,61919.0,0.00112]
[1728481470900,0.080816,61916.0,61910.0,0.080822]
[1728481471211,1.6595938,61915.0,61913.0,0.080818]
[1728481471393,0.03651923,61914.0,61913.0,0.080819]
[1728481471629,0.16050769,61931.0,61913.0,1.44536]
[1728481471789,0.16050769,61931.0,61926.0,0.28]
[1728481471790,0.14445692,61929.0,61926.0,0.28]
[1728481472000,1.54184225,61928.0,61927.0,0.0808]
[1728481472224,1.6,61928.0,61927.0,0.0808]
[1728481473699,1.601,61928.0,61927.0,0.0808]
[1728481474096,1.6,61928.0,61927.0,0.0828]
[1728481474514,0.1,61928.0,61927.0,0.0828]
[1728481474747,0.014,61929.0,61927.0,1.08644]
[1728481474911,0.00242318,61938.0,61937.0,0.270787]
[1728481475207,0.12242318,61938.0,61937.0,0.270787]
[1728481475396,0.11242318,61938.0,61937.0,0.270787]
[1728481476096,0.00242318,61938.0,61937.0,0.270787]
[1728481476289,0.00242318,61938.0,61937.0,1.355147]
[1728481476495,0.14482694,61946.0,61937.0,1.355147]
[1728481476695,0.45268,61956.0,61946.0,0.080776]
[1728481476696,0.14482694,61947.0,61946.0,0.080776]
[1728481476904,0.04959063,61947.0,61946.0,0.23477315]
[1728481477404,0.22559894,61949.0,61946.0,0.23477315]
[1728481477636,0.04959075,61948.0,61946.0,0.23477315]
[1728481477911,0.14482694,61949.0,61948.0,0.080773]
[1728481478103,0.04959053,61949.0,61948.0,0.080773]
[1728481478312,0.14458987,61956.0,61951.0,0.080769]
[1728481478529,0.14458987,61959.0,61958.0,0.08076]
[1728481478733,0.01368337,61977.0,61958.0,0.08076]
[1728481478734,0.60245682,61975.0,61958.0,0.845]
[1728481478922,0.04957534,61974.0,61972.0,0.28]
[1728481479208,0.04957534,61973.0,61972.0,0.360742]
[1728481479605,0.04957534,61973.0,61968.0,0.28]
[1728481479900,0.36164,61975.0,61968.0,0.28]
[1728481479901,1.5,61972.0,61969.0,0.080746]
[1728481480352,1.5,61972.0,61965.0,0.3608]
[1728481480353,0.28,61971.0,61965.0,0.3608]
[1728481480515,0.080749,61966.0,61965.0,0.3608]
[1728481480806,0.28,61971.0,61965.0,0.3608]
[1728481481116,0.080749,61967.0,61965.0,0.3608]
[1728481481315,0.28,61971.0,61965.0,0.3608]
[1728481481491,0.080749,61966.0,61965.0,0.3608]
[1728481481695,0.11661118,61966.0,61965.0,0.3608]
[1728481482099,0.03586218,61966.0,61965.0,0.3608]
[1728481482398,0.03586218,61966.0,61965.0,0.441551]
[1728481482703,0.03786218,61966.0,61965.0,0.442551]
[1728481483100,0.006,61971.0,61965.0,0.442551]
[1728481483295,1.5,61972.0,61970.0,0.6408]
[1728481483503,1.5,61972.0,61971.0,0.080743]
[1728481483803,1.5361729,61972.0,61971.0,0.080743]
[1728481484217,0.0361729,61972.0,61971.0,0.080743]
[1728481485924,0.0421729,61972.0,61971.0,0.081743]
[1728481486305,0.0421729,61972.0,61971.0,0.002]
[1728481486306,0.0491729,61972.0,61971.0,0.002]
[1728481486513,0.1691729,61972.0,61971.0,0.002]
[1728481486708,0.2499149,61972.0,61971.0,0.002]
[1728481486910,0.6107149,61972.0,61971.0,0.002]
[1728481487917,1.13642526,61972.0,61971.0,0.0011258]
[1728481488613,1.13636501,61972.0,61971.0,0.0011258]
[1728481489128,1.13636501,61972.0,61962.0,0.080754]
[1728481489129,0.080749,61967.0,61962.0,0.04616537]
[1728481489329,0.0361729,61966.0,61962.0,0.04616537]
[1728481489512,0.0361729,61965.0,61959.0,0.3608]
[1728481489809,0.0361729,61965.0,61964.0,0.080752]
[1728481489810,0.12,61965.0,61964.0,0.080752]
[1728481490023,0.15549922,61965.0,61964.0,0.080752]
[1728481490464,0.15549922,61965.0,61959.0,0.3608]
[1728481490735,0.03542872,61964.0,61959.0,0.3608]
[1728481490931,0.11,61964.0,61963.0,0.080753]
[1728481491416,0.1865883,61964.0,61963.0,0.080753]
[1728481492210,0.2673403,61964.0,61963.0,0.080753]
[1728481492424,0.2673403,61964.0,61959.0,0.3608]
[1728481492425,0.080755,61962.0,61960.0,0.080757]
[1728481492622,0.0765883,61961.0,61960.0,0.080757]
[1728481492909,0.1865883,61961.0,61960.0,0.080757]
[1728481493815,0.2673443,61961.0,61960.0,0.080757]
[1728481494123,0.1865883,61961.0,61960.0,0.084757]
[1728481494411,0.2673443,61961.0,61960.0,0.084757]
[1728481495313,0.2673443,61961.0,61960.0,0.004]
[1728481495529,0.26745196,61961.0,61960.0,0.007]
[1728481496719,0.26745196,61961.0,61960.0,0.003]
[1728481497108,0.080757,61960.0,61959.0,0.3608]
[1728481497313,0.26745296,61960.0,61959.0,0.441559]
[1728481497513,0.26745296,61960.0,61959.0,0.3608]
[1728481497730,0.080762,61956.0,61955.0,0.3608]
[1728481497911,0.26745796,61956.0,61955.0,0.3608]
[1728481498313,1.81703863,61956.0,61955.0,0.23148107]
[1728481498616,1.81703863,61956.0,61941.0,0.28]
[1728481498617,0.080768,61952.0,61941.0,0.28]
[1728481498839,0.080768,61952.0,61938.0,0.3608]
[1728481498840,0.080779,61943.0,61938.0,0.3608]
[1728481499029,0.080779,61943.0,61941.0,0.080782]
[1728481499030,0.07669596,61942.0,61941.0,0.080782]
[1728481499225,0.1,61942.0,61941.0,0.360782]
[1728481500423,0.101,61942.0,61941.0,0.365782]
[1728481500623,0.080767,61953.0,61952.0,0.080767]
[1728481500921,0.03354229,61953.0,61952.0,0.721568]
[1728481501226,1.50084,61956.0,61955.0,0.080764]
[1728481501413,1.61445066,61956.0,61955.0,0.080764]
[1728481501616,1.53368866,61956.0,61955.0,0.080764]
[1728481501931,0.03368866,61956.0,61955.0,0.080764]
[1728481503424,0.13368866,61956.0,61955.0,0.080764]
[1728481504224,0.13368866,61956.0,61955.0,0.082764]
[1728481504529,0.21445066,61956.0,61955.0,0.083764]
[1728481504741,0.25402812,61956.0,61955.0,0.003]
[1728481505313,1.33822812,61956.0,61955.0,0.003]
[1728481505626,0.17326612,61956.0,61955.0,0.003]
[1728481505940,0.03368866,61956.0,61955.0,0.363764]
[1728481506228,0.09162813,61956.0,61955.0,0.003]
[1728481506415,0.09162813,61956.0,61955.0,0.001]
[1728481506416,0.23296723,61956.0,61955.0,0.001]
[1728481506614,0.32053823,61956.0,61955.0,0.081764]
[1728481506819,0.2909052,61956.0,61955.0,0.081764]
[1728481507015,0.42807106,61956.0,61955.0,0.083764]
[1728481507335,0.2909052,61956.0,61955.0,0.083764]
[1728481507637,0.2929052,61956.0,61955.0,0.080764]
[1728481507825,0.41184375,61956.0,61955.0,0.080764]
[1728481508027,0.35978168,61956.0,61955.0,0.080764]
[1728481508223,0.29984375,61956.0,61955.0,0.081764]
[1728481508418,0.12296723,61956.0,61951.0,0.1306]
[1728481508739,0.16081275,61954.0,61951.0,0.147969]
[1728481508925,0.12296723,61953.0,61951.0,0.147969]
[1728481509130,0.12296723,61953.0,61951.0,0.080769]
[1728481509131,0.12296723,61952.0,61951.0,0.080769]
[1728481509327,0.22296723,61952.0,61951.0,0.080769]
[1728481509546,0.30373523,61952.0,61951.0,0.080769]
[1728481509718,0.22296723,61952.0,61951.0,0.080769]
[1728481509921,0.30373523,61952.0,61951.0,0.080769]
[1728481510118,0.17338288,61952.0,61945.0,0.3608]
[1728481510320,0.12296983,61951.0,61950.0,0.08077]
[1728481510546,0.24296983,61951.0,61950.0,0.08077]
[1728481510729,0.0916314,61951.0,61950.0,0.08077]
[1728481510945,0.28378684,61951.0,61950.0,0.08077]
[1728481511727,0.28231874,61951.0,61950.0,0.08077]
[1728481511927,0.28231874,61951.0,61950.0,0.44157]
[1728481512129,0.12150173,61951.0,61950.0,0.44157]
[1728481512433,0.31227073,61951.0,61950.0,0.44157]
[1728481512827,0.31227073,61951.0,61950.0,0.08077]
[1728481513026,0.47408774,61951.0,61950.0,0.08077]
[1728481513228,0.191769,61951.0,61950.0,0.08077]
[1728481513841,0.190769,61951.0,61950.0,0.08377]
[1728481514030,0.191769,61951.0,61950.0,0.08677]
[1728481514433,0.190769,61951.0,61950.0,0.08677]
[1728481515250,0.190769,61951.0,61950.0,0.006]
[1728481515467,0.58381811,61951.0,61950.0,0.006]
[1728481516036,1.10762628,61951.0,61950.0,0.006]
[1728481516246,1.10762628,61951.0,61932.0,0.3608]
[1728481516247,0.080774,61948.0,61932.0,0.3608]
[1728481516564,0.080786,61938.0,61935.0,0.080789]
[1728481516738,0.080786,61938.0,61932.0,0.080793]
[1728481516739,0.39231077,61937.0,61932.0,0.080793]
[1728481516931,0.080792,61934.0,61932.0,0.080793]
[1728481517140,0.1,61934.0,61933.0,0.080792]
[1728481517554,0.180791,61934.0,61930.0,0.080796]
[1728481517871,0.080796,61931.0,61927.0,0.0808]
[1728481518026,0.180796,61931.0,61927.0,0.0808]
[1728481518657,0.180796,61931.0,61923.0,0.080805]
[1728481518658,0.080802,61926.0,61923.0,0.080805]
[1728481518834,0.180802,61926.0,61923.0,0.080805]
[1728481519137,0.080804,61924.0,61921.0,0.080808]
[1728481519333,0.200804,61924.0,61921.0,0.080808]
[1728481519641,0.200804,61924.0,61923.0,0.080806]
[1728481519642,0.12,61924.0,61923.0,0.080806]
[1728481520236,0.121,61924.0,61923.0,0.080806]
[1728481520440,0.121,61924.0,61920.0,0.01617]
[1728481520660,0.122,61924.0,61921.0,0.005]
[1728481520860,0.122,61924.0,61923.0,0.080806]
[1728481521052,0.122,61924.0,61923.0,0.441606]
[1728481521053,0.002,61924.0,61923.0,0.441606]
[1728481521535,0.001,61924.0,61923.0,0.441606]
[1728481521740,0.441594,61932.0,61930.0,0.080796]
[1728481521950,0.080789,61936.0,61934.0,0.080791]
[1728481522137,0.07,61936.0,61935.0,0.08079]
[1728481522338,0.080786,61938.0,61930.0,0.28]
[1728481522647,0.080787,61937.0,61936.0,0.080788]
[1728481522960,0.080787,61937.0,61929.0,0.080797]
[1728481522961,0.00084,61942.0,61941.0,0.080782]
[1728481523179,0.080766,61954.0,61951.0,0.080769]
[1728481523358,0.080757,61961.0,61951.0,0.360769]
[1728481523551,0.08076,61958.0,61951.0,0.360769]
[1728481523738,0.080754,61963.0,61951.0,0.360769]
[1728481524041,0.080757,61961.0,61951.0,0.360769]
[1728481524252,0.080758,61960.0,61951.0,0.360769]
[1728481524458,0.0164226,61952.0,61951.0,0.360769]
[1728481524634,0.0164226,61952.0,61951.0,0.080769]
[1728481524870,0.0164226,61952.0,61948.0,0.0657]
[1728481524871,0.08077,61950.0,61948.0,0.0657]
[1728481525030,0.0164226,61952.0,61951.0,0.080769]
[1728481525440,0.014,61952.0,61951.0,0.080769]
[1728481525641,0.094768,61952.0,61951.0,0.080769]
[1728481525845,0.080771,61950.0,61949.0,0.080771]
[1728481526835,0.015,61952.0,61951.0,0.080769]
[1728481527039,0.117,61952.0,61951.0,0.080769]
[1728481527246,0.190768,61952.0,61951.0,0.080769]
[1728481527552,0.08077,61950.0,61949.0,0.001]
[1728481527734,0.08077,61950.0,61949.0,0.081772]
[1728481527972,0.08077,61950.0,61947.0,0.3608]
[1728481527973,0.080773,61948.0,61947.0,0.3608]
[1728481528159,0.12,61948.0,61937.0,0.28]
[1728481528350,0.08078,61943.0,61942.0,0.08078]
[1728481528749,0.11288756,61943.0,61942.0,0.44158]
[1728481528951,0.03210756,61943.0,61942.0,0.44158]
[1728481531354,0.1447264,61956.0,61942.0,1.44612]
[1728481531562,0.080767,61953.0,61952.0,0.080764]
[1728481531759,0.12032793,61953.0,61952.0,0.080764]
[1728481532066,0.24032793,61953.0,61952.0,0.080764]
[1728481532840,0.080772,61950.0,61949.0,0.080771]
[1728481533164,0.080779,61943.0,61942.0,0.3618]
[1728481533360,0.59113993,61943.0,61942.0,0.001]
[1728481533561,0.08079,61935.0,61931.0,0.080795]
[1728481533760,0.08079,61935.0,61929.0,0.36322176]
[1728481533761,0.080795,61931.0,61929.0,0.00242176]
[1728481533968,0.12036999,61930.0,61929.0,0.00242176]
[1728481534187,0.23036999,61930.0,61929.0,0.08321976]
[1728481534344,0.24036999,61930.0,61929.0,0.08321976]
[1728481534642,0.15957399,61930.0,61929.0,0.08321976]
[1728481535748,0.24036999,61930.0,61929.0,0.08321976]
[1728481535943,0.15957399,61930.0,61929.0,0.08321976]
[1728481536346,0.12,61930.0,61929.0,0.08321976]
[1728481536643,0.12,61930.0,61929.0,0.08521976]
[1728481537746,0.080795,61932.0,61931.0,0.080795]
[1728481537945,0.080796,61930.0,61929.0,0.00342176]
[1728481538147,0.180796,61930.0,61929.0,0.00342176]
[1728481538376,0.821596,61930.0,61929.0,0.001]
[1728481538586,0.821596,61930.0,61918.0,0.3608]
[1728481538587,0.080808,61921.0,61918.0,0.3608]
[1728481538759,0.180808,61921.0,61918.0,0.3608]
[1728481539382,0.180808,61921.0,61920.0,0.080809]
[1728481539552,0.1,61921.0,61920.0,0.080809]
[1728481539947,0.080798,61929.0,61919.0,0.28]
[1728481540252,0.080798,61929.0,61928.0,0.360799]
[1728481540253,0.11,61929.0,61928.0,0.360799]
[1728481540447,0.11,61929.0,61928.0,0.080799]
[1728481540663,0.190798,61929.0,61924.0,0.28]
[1728481540852,0.190798,61929.0,61928.0,0.080799]
[1728481541046,0.11,61929.0,61928.0,0.080799]
[1728481541254,0.11,61929.0,61928.0,0.360799]
[1728481543057,0.11,61929.0,61928.0,0.080799]
[1728481543955,0.190799,61929.0,61927.0,0.0808]
[1728481544149,0.190799,61929.0,61928.0,0.002]
[1728481544757,0.11,61929.0,61928.0,0.002]
[1728481544953,0.190798,61929.0,61928.0,0.002]
[1728481545458,0.11,61929.0,61920.0,0.28]
[1728481545772,0.0808,61927.0,61924.0,0.080803]
[1728481545970,0.0808,61927.0,61920.0,0.28]
[1728481545971,0.080802,61926.0,61920.0,0.28]
[1728481546167,0.080807,61922.0,61919.0,0.08081]
[1728481546377,0.08081,61920.0,61919.0,0.08081]
[1728481546682,0.080811,61919.0,61918.0,0.3608]
[1728481546962,0.200811,61919.0,61918.0,0.3608]
[1728481548159,0.201811,61919.0,61918.0,0.3708]
[1728481548356,0.201811,61919.0,61918.0,0.451612]
[1728481548551,0.121,61919.0,61918.0,0.451612]
[1728481549254,0.201811,61919.0,61918.0,0.451612]
[1728481549581,0.121,61919.0,61918.0,0.451612]
[1728481549763,0.122,61919.0,61918.0,0.451612]
[1728481550545,0.122,61919.0,61918.0,0.090812]
[1728481550961,0.002,61919.0,61918.0,0.090812]
[1728481552359,0.192811,61919.0,61918.0,0.01]
[1728481552669,0.112,61919.0,61918.0,0.090812]
[1728481552963,0.192811,61919.0,61918.0,0.090812]
[1728481553261,0.192811,61919.0,61918.0,0.01]
[1728481553463,0.112,61919.0,61918.0,0.090812]
[1728481553657,0.002,61919.0,61918.0,0.090812]
[1728481555562,0.082811,61919.0,61918.0,0.01]
[1728481555856,0.202811,61919.0,61918.0,0.01]
[1728481557069,0.202811,61919.0,61918.0,0.090812]
[1728481557256,0.202811,61919.0,61918.0,0.01]
[1728481558578,0.002,61919.0,61918.0,0.451612]
[1728481559859,0.112,61919.0,61918.0,0.090812]
[1728481560362,0.112,61919.0,61918.0,0.451612]
[1728481560363,0.002,61919.0,61918.0,0.451612]
[1728481560663,1.83002278,61934.0,61918.0,0.3708]
[1728481560963,0.080803,61926.0,61925.0,0.080803]
[1728481561164,0.080803,61926.0,61921.0,0.28]
[1728481561165,0.080808,61922.0,61921.0,0.080807]
[1728481561366,0.1,61922.0,61921.0,0.360807]
[1728481561571,0.080802,61926.0,61925.0,0.080802]
[1728481561762,0.12,61926.0,61925.0,0.721602]
[1728481561981,0.12,61926.0,61925.0,0.441602]
[1728481562179,0.200802,61926.0,61925.0,0.441602]
[1728481562879,0.200802,61926.0,61918.0,0.3708]
[1728481562880,0.201802,61926.0,61918.0,0.3708]
[1728481563071,0.08081,61922.0,61918.0,0.3708]
[1728481563278,0.080811,61919.0,61918.0,0.451611]
[1728481563479,0.080811,61919.0,61918.0,0.01]
[1728481563480,0.190811,61919.0,61918.0,0.01]
[1728481563786,0.080819,61913.0,61912.0,0.3608]
[1728481564274,0.200819,61913.0,61912.0,0.3608]
[1728481564786,0.080826,61907.0,61906.0,0.37697]
[1728481564988,0.3608,61915.0,61906.0,0.37697]
[1728481565170,0.080821,61912.0,61907.0,0.080826]
[1728481565506,0.180821,61912.0,61911.0,0.080821]
[1728481565681,0.1,61912.0,61911.0,0.080821]
[1728481566071,0.3618,61919.0,61911.0,0.721621]
[1728481566287,0.4618,61919.0,61918.0,0.360812]
[1728481566475,0.49302583,61919.0,61918.0,0.28]
[1728481566666,0.57383683,61919.0,61912.0,0.3517]
[1728481566960,0.542611,61919.0,61918.0,0.080812]
[1728481567166,0.49202383,61919.0,61911.0,0.3608]
[1728481567370,0.080815,61916.0,61912.0,0.080819]
[1728481567564,0.03122383,61915.0,61913.0,0.080818]
[1728481567776,0.15122383,61915.0,61914.0,0.080817]
[1728481567964,0.15122383,61915.0,61912.0,0.3608]
[1728481568168,0.03122383,61914.0,61913.0,0.080819]
[1728481568368,0.15122383,61914.0,61913.0,0.080819]
[1728481568967,0.001,61915.0,61914.0,0.080817]
[1728481569876,0.001,61915.0,61906.0,0.37697]
[1728481569877,0.111,61915.0,61906.0,0.37697]
[1728481570067,0.03122398,61914.0,61906.0,0.37697]
[1728481570295,0.080826,61907.0,61906.0,0.01617]
[1728481570577,0.470826,61907.0,61906.0,0.01617]
[1728481570782,0.50205481,61907.0,61893.0,0.3608]
[1728481570998,0.080838,61899.0,61890.0,0.097018]
[1728481571295,0.080838,61899.0,61890.0,0.01617]
[1728481571296,0.31122881,61898.0,61890.0,0.01617]
[1728481571482,0.080847,61891.0,61890.0,0.01617]
[1728481571698,0.080847,61891.0,61890.0,0.28]
[1728481571699,0.03122881,61891.0,61890.0,0.28]
[1728481572000,0.3608,61892.0,61890.0,0.360849]
[1728481572508,0.541647,61892.0,61890.0,0.005]
[1728481572711,0.4608,61892.0,61890.0,0.005]
[1728481573013,0.3628,61899.0,61895.0,0.080841]
[1728481573199,0.03238597,61898.0,61895.0,0.080841]
[1728481573390,0.03238597,61897.0,61895.0,0.080841]
[1728481573583,0.12,61897.0,61890.0,0.005]
[1728481573784,0.080842,61895.0,61890.0,0.005]
[1728481573982,0.001,61892.0,61890.0,0.007]
[1728481574187,0.111,61892.0,61890.0,0.087847]
[1728481574370,0.111,61892.0,61891.0,0.080847]
[1728481574593,0.001,61892.0,61891.0,0.360847]
[1728481574778,0.3608,61899.0,61891.0,0.28]
[1728481574987,0.3608,61899.0,61898.0,0.080838]
[1728481575376,0.3618,61899.0,61898.0,0.080838]
[1728481575573,0.6418,61899.0,61890.0,0.002]